Cogmind - Beta 17 @@@ ROGUE MODE // 2026.06.30 @ 21:34:03 Player: eph7ra Result: Self-destructed Performance ------------- Evolutions (1) 500 Regions Visited (2) 400 Robots Destroyed (24) 120 Value Destroyed (464) 464 Prototype IDs (0) 0 Alien Tech Used (0) 0 Bonus (0) 0 TOTAL SCORE: 1484 Bonus ------- None Cogmind --------- Core Integrity 245/400 Matter 300/300 Energy 100/100 System Corruption 4% Temperature Cool (0) Movement Rolling (115) Ox1 Location -9/Materials Parts ------- > --- POWER (1) -------- (None) > --- PROPULSION (3) --- Compact Wheel > --- UTILITY (3) ------ Large Storage Unit > --- WEAPON (2) ------- (None) > --- INVENTORY (15) --- Light Ion Engine Deuterium Engine Light Treads Light Treads Light Treads Wheel Flight Unit Light Assault Rifle Improved Light Cannon Peak State ------------ > --- POWER ------------ Deuterium Engine > --- PROPULSION ------- Aluminum Leg Aluminum Leg > --- UTILITY ---------- Small Storage Unit Hardened Light Armor Plating > --- WEAPON ----------- Particle Gun Assault Rifle > --- INVENTORY -------- Deuterium Engine Light Treads Light Treads Compact Wheel Compact Wheel Small Laser Improved Light Cannon Grenade Launcher [Rating: 12] Favorites ----------- Power Deuterium Engine Engine Deuterium Engine Propulsion Aluminum Leg Leg Aluminum Leg Wheel Compact Wheel Utility Small Storage Unit Device Heat Sink Storage Small Storage Unit Protection Hardened Light Armor Plating Weapon Particle Gun Energy Gun Particle Gun Ballistic Gun Assault Rifle Ballistic Cannon Improved Light Cannon Launcher Grenade Launcher Build | -11 -10 -9 ------- Run | Yrd Mat Mat Slots Evolved 2 | . . 2 Power . | . . . Propulsion 1 | . . 1 Utility 1 | . . 1 Weapon . | . . . Parts Attached 16 | 6 2 8 Power 2 | 1 . 1 Engine 2 | 1 . 1 Core . | . . . Reactor . | . . . Propulsion 4 | 2 . 2 Treads . | . . . Leg 2 | 2 . . Wheel 2 | . . 2 Hover . | . . . Flight . | . . . Utility 5 | 1 . 4 Device 2 | . . 2 Storage 2 | 1 . 1 Processor . | . . . Hackware . | . . . Protection 1 | . . 1 Artifact . | . . . Weapon 5 | 2 2 1 Energy Gun 2 | 1 1 . Energy Cannon . | . . . Ballistic Gun 1 | 1 . . Ballistic Cannon 1 | . . 1 Launcher 1 | . 1 . Special Weapon . | . . . Impact Weapon . | . . . Slashing Weapon . | . . . Piercing Weapon . | . . . Special Melee Weapon . | . . . Unidentified Prototypes . | . . . Parts Lost 10 | . . 10 Power 1 | . . 1 Propulsion 3 | . . 3 Utility 2 | . . 2 Weapon 4 | . . 4 Highest Loss Streak 3 | . . 3 To Critical Strikes . | . . . Average Backups 7 | 3 7 7 Power 1 | . 1 1 Propulsion 3 | 2 4 3 Utility . | . . . Weapon 2 | . 2 2 Tool/Special . | . . . Unused Backups 10 | . 1 9 Power 3 | . . 3 Propulsion 5 | . . 5 Utility . | . . . Weapon 2 | . 1 1 Tool/Special . | . . . Average Slot Usage (%) 71 | . 82 67 Engine 10 | . 14 9 Leg 12 | . 27 7 Wheel 4 | . . 5 Device 4 | . . 6 Storage 11 | . 14 11 Protection 5 | . . 8 Energy Gun 12 | . 12 12 Ballistic Gun 8 | . 12 6 Peak Build Rating 12 | 6 7 12 Average Rating 8 | 3 6 10 On Entrance 4 | . 6 7 Avg Prop Armor Cover (%) . | . . . Naked Turns . | . . . Heaviest Build 27 | 11 13 27 Greatest Support 32 | 20 20 32 Greatest Overweight (x) 8 | 3 4 8 Average Overweight (x) 1 | . . 1 Largest Inventory Capacity 15 | 8 8 15 Average Capacity 8 | 7 8 9 Most Carried 9 | 6 8 9 Average Carried 7 | 4 7 7 Final Capacity 15 | 8 8 15 Final Carried 9 | 6 8 9 Class Distribution -------------------- 100% | Mutant Dominant Class ---------------- Mutant | -10/Materials Mutant | -9/Materials Resources | -11 -10 -9 ----------- Run | Yrd Mat Mat Matter Collected 532 | 260 68 204 Remotely 20 | . . 20 Salvage Created 588 | . 165 423 Parts 41 | . 17 24 Haulers Intercepted . | . . . Recyclers Shooed 1 | . . 1 Parts Field Recycled . | . . . Retrieved Matter . | . . . Parts Self-Destructed . | . . . Prevented . | . . . Parts Restored . | . . . Kills | -11 -10 -9 ------- Run | Yrd Mat Mat Combat Hostiles Destroyed 18 | . 9 9 Guns 10 | . 2 8 Cannons 1 | . . 1 AOE 7 | . 7 . Classes Destroyed 7 | . 3 4 Worker 3 | . 2 1 Builder 1 | . . 1 Recycler 1 | . . 1 Watcher 1 | . . 1 Swarmer 9 | . 6 3 Grunt 8 | . 3 5 Brawler 1 | . . 1 Best Kill Streak 11 | . 11 5 Combat Bots Only 9 | . 9 4 Max Kills in Single Turn 5 | . 5 2 Gunslinging 1 | . . 1 Exploded 4 | . 4 . Melee . | . . . Uniques/NPCs Destroyed . | . . . Combat | -11 -10 -9 -------- Run | Yrd Mat Mat Hostile Shots Fired 132 | . 19 113 Missed 37 | . 5 32 Hits 95 | . 14 81 Melee 3 | . . 3 Projectile 92 | . 14 78 Damage Taken 1102 | . 172 930 Core 161 | . 6 155 Absorbed by Shields . | . . . Core Remaining (%) 98 | 100 97 . Volleys Fired 49 | . 6 43 Largest 2 | . 2 2 Hottest 105 | . 85 105 Shots Fired 87 | . 12 75 Gun 74 | . 9 65 Cannon 9 | . . 9 Launcher 4 | . 3 1 Special . | . . . Kinetic 25 | . 6 19 Thermal 58 | . 3 55 Explosive 4 | . 3 1 Electromagnetic . | . . . Robot Hit Streak 9 | . 4 9 Robot Miss Streak 7 | . 1 7 Penetration Max . | . . . Secondary Targets 2 | . 1 1 Max Gunslinging Chain 1 | . 1 1 Shots Hit Robots 46 | . 6 40 Core Hits 32 | . 15 17 Critical Kills . | . . . Critical Parts Destroyed . | . . . Critical Strikes 2 | . 1 1 Burn 2 | . 1 1 Melee Attacks . | . . . Impact . | . . . Slashing . | . . . Piercing . | . . . Sneak Attacks . | . . . Combat Hostiles . | . . . Follow-up Attacks . | . . . Damage Inflicted 1133 | . 514 619 Guns 574 | . 85 489 Cannons 109 | . . 109 Explosions 431 | . 429 2 Melee . | . . . Ramming 19 | . . 19 Kinetic 195 | . 54 141 Thermal 488 | . 31 457 Explosive 431 | . 429 2 Electromagnetic . | . . . Impact . | . . . Slashing . | . . . Piercing . | . . . Highest Corruption 4 | . . 4 Average Corruption 4 | . . 4 Corruption Purged . | . . . Corruption Blocked . | . . . Effects 1 | . . 1 Data Loss (major) 1 | . . 1 Overload Shots . | . . . Overflow Damage 36 | . 36 . Projectiles . | . . . Explosions 36 | . 36 . Melee . | . . . Knockbacks 2 | . . 2 Impact . | . . . Kinetic 2 | . . 2 Secondary . | . . . Self-Inflicted Damage 36 | . 31 5 Shots 1 | . 1 . Rammed 3 | . . 3 Targets Rammed 5 | . . 5 Kicked 2 | . . 2 Crushed . | . . . Highest Temperature 339 | . 63 339 Average Temperature 117 | . 30 128 Received Heat Transfer 333 | . 36 297 Effects 3 | . . 3 Interference 3 | . . 3 Siege Activations . | . . . Martial Activations . | . . . Shielding Activations . | . . . Robots Disrupted . | . . . Combat Hostiles . | . . . Robots Corrupted . | . . . Combat Hostiles . | . . . Parts Fried . | . . . Impact Corruptions . | . . . Robots Melted . | . . . Combat Hostiles . | . . . Parts Melted 3 | . . 3 Heat Transferred 1311 | . 148 1163 Parts Sabotaged . | . . . Parts Stolen . | . . . Parts Stripped . | . . . Power Chain Reactions . | . . . Alert | -11 -10 -9 ------- Run | Yrd Mat Mat Maximum Alert Level 1 | . 1 . Low Security (%) 90 | 100 62 100 Level 1 9 | . 37 . Level 2 . | . . . Level 3 . | . . . Level 4 . | . . . Level 5 . | . . . High Security . | . . . Max Security . | . . . Peak Influence 237 | . 237 165 Initial 74 | . . 74 Average 66 | . 129 47 Influence Increases 586 | . 247 339 Destroy 0b10 Robot/C 360 | . 180 180 Destroy 0b10 Robot/NC 30 | . 10 20 Destroy Leader 72 | . 40 32 Successful Hack 12 | . . 12 Disable Machine 15 | . . 15 Destroy Structure 22 | . 17 5 Lose Combat Pursuer 75 | . . 75 Influence Decreases 486 | . 70 416 Entered New Map 103 | . . 103 Time Decay 297 | . 70 227 Lost Part 86 | . . 86 Squads Dispatched 2 | . 1 1 Investigation . | . . . Extermination . | . . . Reinforcement 2 | . 1 1 Assault . | . . . Garrison . | . . . Intercept . | . . . Searches Triggered . | . . . Construction Impeded . | . . . Haulers Reinforced . | . . . Active Scanning Responses . | . . . Cargo Convoy Interrupts . | . . . Stealth | -11 -10 -9 --------- Run | Yrd Mat Mat Distress Signals 2 | . 1 1 Communications Jammed . | . . . Distress Signals . | . . . Times Spotted 31 | . 10 21 Peak Tracking Total 5 | . 5 5 Tactical Retreats 2 | . . 2 Traps | -11 -10 -9 ------- Run | Yrd Mat Mat Traps Triggered 3 | . 3 . Indirectly . | . . . Trap Hack Attempts . | . . . Triggered . | . . . Disarmed . | . . . Reprogrammed . | . . . Reused . | . . . Traps Extracted . | . . . Installed . | . . . Triggered . | . . . Machines | -11 -10 -9 ---------- Run | Yrd Mat Mat Machines Disabled 1 | . . 1 Max in Single Turn 1 | . . 1 Machines Repaired . | . . . Machines Dismantled . | . . . Machines Sabotaged . | . . . Overloaded Fab Kills . | . . . Hacking | -11 -10 -9 --------- Run | Yrd Mat Mat Machines Accessed 3 | . . 3 Terminals 3 | . . 3 Fabricators . | . . . Repair Stations . | . . . Recycling Units . | . . . Scanalyzers . | . . . Garrison Access . | . . . Total Hacks 8 | . . 8 Successful 6 | . . 6 Failed 2 | . . 2 Catastrophic . | . . . Database Lockouts . | . . . Manual 7 | . . 7 Terminals 8 | . . 8 Fabricators . | . . . Repair Stations . | . . . Recycling Units . | . . . Scanalyzers . | . . . Garrison Access . | . . . Terminal Hacks 2 | . . 2 Robot Analysis 1 | . . 1 Unreport Threat 1 | . . 1 Fabricator Hacks . | . . . Repair Station Hacks . | . . . Recycling Unit Hacks . | . . . Scanalyzer . | . . . Garrison Access Hacks . | . . . Unauthorized Hacks 4 | . . 4 Terminals 4 | . . 4 Botnet 1 | . . 1 Skim 3 | . . 3 Fabricators . | . . . Repair Stations . | . . . Recycling Units . | . . . Scanalyzers . | . . . Garrison Access . | . . . Data Cores Recovered . | . . . Used . | . . . Hacking Detections 3 | . . 3 Full Trace Events . | . . . Feedback Events . | . . . Feedback Blocked . | . . . Robot Schematics Acquired . | . . . Robots Built . | . . . Authchips . | . . . Time . | . . . Total Robot Build Rating . | . . . Part Schematics Acquired . | . . . Parts Built . | . . . Authchips . | . . . Time . | . . . Total Part Build Rating . | . . . Part Studies Acquired . | . . . Parts Repaired . | . . . Time . | . . . Parts Recycled . | . . . Recycled Matter . | . . . Retrieved Matter . | . . . Retrieved Components . | . . . Parts Scanalyzed . | . . . Part Schematics Acquired . | . . . Parts Damaged . | . . . Bothacking | -11 -10 -9 ------------ Run | Yrd Mat Mat Used RIF Installer . | . . . Robots Hacked . | . . . Non-combat . | . . . Combat . | . . . Robot Hacks Applied . | . . . Relay Couplers Released . | . . . Fabnet Peak Effective % . | . . . Robots Rewired . | . . . Allies Hacked . | . . . Hacks Repelled . | . . . Allies | -11 -10 -9 -------- Run | Yrd Mat Mat Total Allies . | . . . Largest Group . | . . . Highest-Rated Group . | . . . Highest-Rated Ally . | . . . Total Orders . | . . . Ally Attacks . | . . . Total Damage . | . . . Kills . | . . . Allies Corrupted . | . . . Allies Melted . | . . . Intel | -11 -10 -9 ------- Run | Yrd Mat Mat Active Infowar (turns) . | . . . Robot Analysis Total 1 | . . 1 Derelict Logs Recovered . | . . . Drone Launches . | . . . Drone Recoveries . | . . . Exploration | -11 -10 -9 ------------- Run | Yrd Mat Mat Turns Passed 851 | 55 225 571 Spaces Moved 386 | 35 160 191 Core 54 | 17 1 36 Treads . | . . . Legs 236 | 18 159 59 Wheels 96 | . . 96 Hover . | . . . Flight . | . . . Fastest Speed 50 | 50 120 100 Average Speed 155 | 117 121 191 Slowest Speed 450 | 200 250 450 Overloaded Moves . | . . . Propulsion Burnouts . | . . . Robots Hopped . | . . . Potential Cave-ins . | . . . Cave-ins Triggered . | . . . Exploration Rate (%) 15 | 3 23 19 Regions Visited 2 Branch Regions . Pre-discovered Areas . | . . . Known Exits Taken . | . . . Unknown Exits Taken 2 | 1 1 . Scrap Searched . | . . . Spaces Dug 4 | . 4 . Terrain Destroyed 20 | . 17 3 Melee . | . . . Projectile 1 | . . 1 AOE 19 | . 17 2 Terrain Rammed . | . . . Walls Destroyed . | . . . Machines Disabled . | . . . Actions | -11 -10 -9 --------- Run | Yrd Mat Mat Total 535 | 46 176 313 Wait 52 | . . 52 Move 384 | 34 159 191 Hop . | . . . Pick Up 15 | 6 3 6 Fast Attach 16 | 6 5 5 Attach 4 | . . 4 Detach . | . . . Swap 5 | . 2 3 Drop 5 | . 1 4 Fire 49 | . 6 43 Melee . | . . . Ram 3 | . . 3 Kick 2 | . . 2 Crush . | . . . Escape Stasis . | . . . Rewire . | . . . Trap . | . . . Miscellaneous . | . . . Route ------- -11/Scrapyard -10/Materials (discovered 2 exits: *Mat / [*Min]) -9/Materials History --------- Turn | Location | Event 9 | -11/Scrapyard | Discovered new exit (range 16) 56 | -11/Scrapyard | Entered Materials 72 | -10/Materials | Discovered new exit (range 16) 159 | -10/Materials | Discovered new exit (range 16) 176 | -10/Materials | Destroyed 9 combat bots 281 | -10/Materials | Entered another Materials area 281 | -9/Materials | Evolved 2 slots: Propulsion x1, Utility x1 325 | -9/Materials | Build established: Mutant 805 | -9/Materials | Lost 3 parts (1p1n1u) 852 | -9/Materials | Self-destructed Last Messages --------------- U-05 Engineer destroyed. K-01 Serf collects debris. Aluminum Leg melted. G-34 Mercenary destroyed. K-01 Serf collects debris. Acquired Flight Unit. K-01 Serf collects debris. Acquired Lgt. Ion Engine. Acquired 4 matter. K-01 Serf collects debris. Slammed into K-01 Serf. Particle Gun destroyed. System corrupted by crushing effect (+4). System corrupted: Substantial component data lost. Sml. Laser destroyed. Heat Sink destroyed. ALERT: Hostiles spotted, dispatching reinforcements to Terminal M006. Atomic Centrifuge disabled. Map ----- +----------------------------------------------------+ | ?????????????????????????????????????????????????? | | ?????????????????????????????????????????????????? | | ?????????????????????????????????????????????????? | | ?????????????????????????????????????????????????? | | ?????????????????????????????????????????????????? | | ?????????????????????????????????????????????????? | | ?????????????????????????????????????????????????? | | ?????????????????????????????????????????????????? | | ?????????????????????????????????????????????????? | | ?????????????????????????????????????????????????? | | ?????????????????????????????????????????????????? | | ?????????????????????????????????????????????????? | | ?????????????????????????????????????????????????? | | ?????????????????????????????????????????????????? | | ?????????????????????????????????????????????????? | | ?????????????????????????????????????????????????? | | ?????????????????????????????????????????????????? | | ?????????????????????????????????????????????????? | | ???????????????????????????????######????????????? | | ??????????????????????????????? #####????????? | | ??????????????????????????????? ?????????? | | ??????????????????????????????? ??????????? | | ??????????????????????????????? ???????????? | | ??????????????????????????????? #????????????? | | ????????????????################ #?????????????? | | ????????????????# ==[ @ # #?????????????? | | ?????????????????# =[ ""Y# #?????????????? | | ?????????????????# =[ """ + +?????????????? | | ?????????????????# Y """ # #?????????????? | | ?????????????????# # #?????????????? | | ?????????????????# Y # #?????????????? | | ?????????????????#+############# #?????????????? | | ?????????????????# #???????????# #?????????????? | | ?????????????????#%#???????????# #?????????????? | | ?????????????????# #???????????# #?????????????? | | ?????????????????# #???????????# #?????????????? | | ???? ????????????# #???????????? #?????????????? | | ???? ???????????# #???????????? #?????????????? | | ???? ???????????# #???????????? #?????????????? | | ???? ???????????# #???????????? #?????????????? | | ???? ???????????# #???????????? #?????????????? | | ???? ???????????# #???????????? #?????????????? | | ????# ???????????# #???????????? ??????????????? | | ????# ???######??# #?????????????????????????????? | | ????# #?##!! !##?# #?????????????????????????????? | | ????# #?#! ! !#?# #?????????????????????????????? | | ????# #?#! #?# #?????????????????????????????? | | ????# ### !% ### ##### ????????????????? | | ????# % = %=% ????????????????? | | ????# %%#################+#??????????????????????? | +----------------------------------------------------+ Best States ------------- Heat Dissipation 38 Energy Generation 14 Energy Capacity 275 Matter Stores 300 Matter Capacity 300 Sight Range 16 Terrain Scan Density 10 Armor Coverage 150 Evasion (%) 55 Item Schematics ----------------- None Robot Schematics ------------------ None Fabricated ------------ Nothing Repaired ---------- Nothing Studied --------- None Alien Tech Used ----------------- None Achievements -------------- None Challenges ------------ None Game ------ Seed HybridPitchforkLayer Manual? 0 Play Time 00:10:24 Cumulative 22.3 hours Start 2026.06.30 @ 21:25:00 End 2026.06.30 @ 21:34:03 Sessions 1 Manual Loads 0 Difficulty Rogue Special Mode None Game No. 29 Rogue 24 Adventurer 1 Explorer 4 Win Type - Total 0 Types 0/0/0/0/0/0/0/0/0/0 Lore% 10 Gallery% 19 Achievement% 17 Wizard Run 0 Options --------- Layout 1 ASCII 0 Keyboard 0 Movement Arrows Keybinds 0 Fullscreen 1 Font 24/Smallcaps Map View 50x35 Zoom Use 0% Tactical HUD 0 Map Filters NONE Filters NONE Steam 1 RUN: 23efbff9-cf2f-42a6-a452-e311e9f3d142